bitfinex/quotes_ETHUSD_20251021
["timestamp","ask_amount","ask_price","bid_price","bid_amount"]
[1761041211638,1e-08,3878.9,3878.8,12.3816717]
[1761041211839,1e-08,3878.9,3878.8,12.35589054]
[1761041212779,1e-08,3878.9,3878.8,6.60293247]
[1761041213073,1e-08,3878.9,3878.8,6.34403247]
[1761041213762,1e-08,3878.9,3878.8,12.09699054]
[1761041214353,1e-08,3878.9,3878.8,11.12811054]
[1761041214759,1e-08,3878.9,3878.8,5.37515247]
[1761041215171,1e-08,3878.9,3878.8,5.83715247]
[1761041215582,1e-08,3878.9,3878.8,5.96595247]
[1761041216759,1e-08,3878.9,3878.8,5.50395247]
[1761041217574,1e-08,3878.9,3878.8,5.50595247]
[1761041217978,1e-08,3878.9,3878.8,0.1308]
[1761041218177,0.24680001,3878.9,3878.8,2.70891694]
[1761041218380,1e-08,3878.9,3878.8,2.70891694]
[1761041220667,1e-08,3878.9,3878.8,0.1308]
[1761041220867,0.24680001,3878.9,3878.8,0.1308]
[1761041221889,0.24680001,3878.9,3878.8,0.002]
[1761041222263,1e-08,3878.9,3878.8,0.002]
[1761041222675,0.1288,3879.5,3878.8,0.002]
[1761041222676,0.001,3879.7,3879.6,3.08446531]
[1761041223021,0.001,3879.7,3879.6,2.73216116]
[1761041223216,0.001,3879.7,3878.8,0.002]
[1761041223217,0.1026,3879.7,3878.8,0.002]
[1761041223916,2.68016223,3879.7,3878.9,2.57803241]
[1761041224208,2.68014207,3879.7,3879.0,2.57798132]
[1761041224405,2.68014207,3879.7,3879.1,2.57789019]
[1761041224406,0.1016,3879.6,3879.1,2.57789019]
[1761041224588,0.1016,3879.6,3879.1,2.57791524]
[1761041224918,0.1016,3879.5,3879.2,2.5778455]
[1761041225318,0.1016,3879.5,3879.3,2.57773926]
[1761041225480,0.001,3879.7,3879.4,2.57766619]
[1761041225819,0.001,3879.7,3878.8,0.4336]
[1761041226001,0.001,3879.7,3879.5,2.57759036]
[1761041226311,0.001,3879.7,3878.9,3.00965047]
[1761041226312,0.001,3879.7,3879.4,2.57771056]
[1761041226488,0.001,3879.7,3878.8,0.002]
[1761041226489,0.1016,3879.6,3878.8,0.002]
[1761041226690,0.1016,3879.6,3878.9,2.57800015]
[1761041227020,0.1469,3878.9,3878.8,2.58011694]
[1761041227205,0.1469,3878.9,3878.8,0.002]
[1761041227382,0.2489,3878.9,3878.8,0.002]
[1761041228009,0.2489,3878.9,3878.8,2.58011694]
[1761041228399,0.2489,3878.9,3878.8,0.002]
[1761041229385,0.1469,3878.9,3878.8,0.002]
[1761041229610,0.102,3879.3,3878.8,0.002]
[1761041229905,0.102,3879.3,3878.9,2.57804937]
[1761041230082,0.1025,3879.6,3879.2,2.5778511]
[1761041230282,0.1025,3879.6,3879.2,2.5777938]
[1761041230477,0.1025,3879.6,3878.8,0.102]
[1761041230685,0.1025,3879.6,3879.2,2.57782809]
[1761041230879,0.1025,3879.6,3879.3,2.57776077]
[1761041231085,0.001,3879.7,3879.6,2.57758531]
[1761041231311,0.001,3879.7,3878.8,0.102]
[1761041231312,0.1035,3879.7,3878.8,0.102]
[1761041231984,0.1035,3879.7,3879.3,2.57773399]
[1761041232521,0.1035,3879.7,3879.4,2.57771585]
[1761041232679,0.001,3879.7,3879.4,2.57771585]
[1761041232879,0.1025,3879.6,3878.8,0.102]
[1761041233294,0.2313,3879.6,3879.1,2.57791425]
[1761041233499,0.2313,3879.6,3878.9,0.1288]
[1761041233707,0.1029,3879.5,3878.9,0.1288]
[1761041234024,0.1029,3879.5,3879.1,2.57790338]
[1761041234221,0.1029,3879.5,3878.9,0.1288]
[1761041234512,0.1029,3879.5,3879.0,2.57797572]
[1761041237319,0.1029,3879.5,3879.2,2.57783863]
[1761041238223,0.1029,3879.5,3879.1,2.57790063]
[1761041238514,0.1029,3879.5,3878.9,2.70683792]
[1761041238699,0.1029,3879.5,3878.9,0.1288]
[1761041239017,0.1029,3879.5,3879.1,2.57790419]
[1761041239396,0.1029,3879.5,3879.0,2.57797469]
[1761041240092,0.1029,3879.5,3879.0,2.57793157]
[1761041240291,0.1029,3879.5,3879.1,2.5779125]
[1761041241922,0.1298,3879.6,3878.9,0.5713]
[1761041242144,0.1298,3879.6,3879.5,2.57765175]
[1761041242145,0.001,3879.6,3879.5,2.57765175]
[1761041246623,0.001,3879.6,3879.5,3.02015175]
[1761041248245,0.001,3879.6,3879.5,3.52703175]
[1761041248659,0.001,3879.6,3879.5,5.25503175]
[1761041248847,0.001,3879.6,3879.5,6.04088566]
[1761041252360,0.001,3879.6,3879.5,4.30565175]
[1761041256659,0.001,3879.6,3879.5,4.43445175]
[1761041259475,0.1073,3879.6,3879.5,2.70645175]
[1761041260336,0.001,3879.6,3879.5,2.70645175]
[1761041270405,0.1,3879.6,3879.5,2.70645175]
[1761041270571,0.001,3879.6,3879.5,2.70645175]
[1761041273102,0.1,3879.6,3879.5,2.70645175]
[1761041274297,0.001,3879.6,3879.5,2.70645175]
[1761041281520,2.67763122,3879.6,3879.3,0.002]
[1761041281722,0.1288,3879.4,3879.3,0.002]
[1761041282086,0.2278,3879.4,3879.3,0.002]
[1761041283300,2.8055182,3879.4,3879.3,0.002]
[1761041283502,12.2125772,3879.4,3879.3,0.002]
[1761041283899,2.8055182,3879.4,3879.3,0.002]
[1761041287733,0.2278,3879.4,3879.3,0.002]
[1761041288741,5.98010687,3879.4,3879.3,0.002]
[1761041288935,2.8055182,3879.4,3879.3,0.002]
[1761041289101,5.98010687,3879.4,3879.3,0.002]
[1761041289500,8.55782507,3879.4,3879.3,0.002]
[1761041290734,0.2278,3879.4,3879.3,0.002]
[1761041291129,2.8055182,3879.4,3879.3,0.002]
[1761041291938,0.2278,3879.4,3879.3,0.002]
[1761041294117,2.8055182,3879.4,3879.3,0.002]
[1761041294548,0.2278,3879.4,3879.3,0.002]
[1761041294931,2.8055182,3879.4,3879.3,0.002]
[1761041296940,0.2278,3879.4,3879.3,0.002]
[1761041297135,0.1288,3879.4,3879.3,0.002]
[1761041297667,2.57861097,3879.6,3879.3,0.002]
[1761041297668,0.001,3879.6,3879.3,0.002]
[1761041297825,0.001,3879.6,3879.3,0.4343]
[1761041298219,0.001,3879.6,3879.3,0.002]
[1761041302158,2.57859884,3879.6,3879.3,0.002]
[1761041303128,2.57766007,3879.5,3879.3,0.002]
[1761041303754,2.57860982,3879.6,3879.3,0.002]
[1761041305358,2.57860982,3879.6,3879.3,0.4343]
[1761041305551,2.57860982,3879.6,3879.3,0.002]
[1761041306434,2.57765967,3879.5,3879.3,0.002]
[1761041308866,8.42902507,3879.4,3879.3,0.002]
[1761041309534,2.6767182,3879.4,3879.3,0.002]
[1761041311945,2.5777182,3879.4,3879.3,0.002]
[1761041312149,2.6767182,3879.4,3879.3,0.002]
[1761041314870,2.5777182,3879.4,3879.3,0.002]
[1761041315075,2.6767182,3879.4,3879.3,0.002]
[1761041315369,2.5777182,3879.4,3879.3,0.002]
[1761041315560,2.6767182,3879.4,3879.3,0.002]
[1761041317069,17.61014207,3879.4,3879.3,0.002]
[1761041317262,15.96693207,3879.4,3879.3,0.002]
[1761041317462,8.42902507,3879.4,3879.3,0.002]
[1761041317865,11.41807207,3879.4,3879.3,0.002]
[1761041318603,2.6767182,3879.4,3879.3,0.002]
[1761041319404,0.099,3879.4,3879.3,0.002]
[1761041319605,2.5777182,3879.4,3879.3,0.002]
[1761041320373,2.70647631,3879.5,3879.3,0.002]
[1761041321897,2.70747631,3879.5,3879.3,0.002]
[1761041323604,2.5777182,3879.4,3879.3,0.002]
[1761041323896,2.70750426,3879.5,3879.3,0.002]
[1761041324271,2.5777182,3879.4,3879.3,0.002]
[1761041325672,2.70747719,3879.5,3879.3,0.002]
[1761041327175,0.001,3879.5,3879.4,0.4447]
[1761041328202,0.001,3879.5,3879.4,3.0224182]
[1761041329510,0.001,3879.5,3879.3,0.002]
[1761041329511,0.001,3879.5,3879.3,2.57978341]
[1761041329703,0.001,3879.5,3879.4,0.4447]
[1761041330412,0.001,3879.5,3879.4,3.0224182]
[1761041331515,0.001,3879.5,3879.4,0.4447]
[1761041331719,0.001,3879.5,3879.4,3.0224182]
[1761041332614,0.001,3879.5,3879.4,0.4447]
[1761041332919,0.001,3879.5,3879.4,3.0224182]
[1761041333590,0.001,3879.5,3879.4,0.4447]
[1761041333791,0.001,3879.5,3879.3,2.57976578]
[1761041334011,0.001,3879.5,3879.3,3.02446578]
[1761041334521,0.001,3879.5,3879.3,0.002]
[1761041343864,2.67769598,3879.5,3879.3,0.002]
[1761041344062,2.80649598,3879.5,3879.3,0.002]
[1761041344226,0.099,3879.4,3879.3,0.002]
[1761041344427,2.6767182,3879.4,3879.3,0.002]
[1761041344651,2.5777182,3879.4,3879.3,0.002]
[1761041344854,2.6767182,3879.4,3879.3,0.002]
[1761041346525,2.5777182,3879.4,3879.3,0.002]
[1761041347562,2.6767182,3879.4,3879.3,0.002]
[1761041348075,29.95852456,3879.4,3879.3,0.001]
[1761041348250,22.21987301,3879.0,3878.9,0.002]
[1761041348450,24.92626688,3879.0,3878.9,0.002]
[1761041348770,25.15950579,3879.0,3878.9,0.002]
[1761041348950,30.23007337,3879.0,3878.9,0.002]
[1761041349748,29.85143937,3879.0,3878.9,0.002]
[1761041349964,29.85529337,3879.0,3878.9,0.002]
[1761041350575,22.25887478,3879.0,3878.9,0.002]
[1761041351068,26.20638278,3879.0,3878.9,0.002]
[1761041351271,24.99138278,3879.0,3878.9,0.002]
[1761041351450,25.11784501,3879.0,3878.9,0.002]
[1761041352040,4.40938259,3879.0,3878.9,0.002]
[1761041352376,4.30598401,3879.0,3878.9,0.002]
[1761041354270,15.55805001,3879.0,3878.9,0.002]
[1761041354572,14.13053801,3879.0,3878.9,0.002]
[1761041354748,11.85378501,3879.0,3878.9,0.002]
[1761041355377,22.89323101,3879.0,3878.9,0.002]
[1761041355675,15.85857977,3879.0,3878.9,0.002]
[1761041356044,14.46470477,3879.0,3878.9,0.002]
[1761041356244,14.86910433,3879.0,3878.9,0.002]
[1761041356451,17.76979233,3879.0,3878.9,0.002]
[1761041356974,15.22291933,3879.0,3878.9,0.002]
[1761041357395,5.71965633,3879.0,3878.9,0.002]
[1761041357571,18.04279733,3879.0,3878.9,0.002]
[1761041358480,12.94964891,3879.0,3878.9,0.002]
[1761041358870,12.54525615,3879.0,3878.9,0.002]
[1761041359587,16.46366415,3879.0,3878.9,0.002]
[1761041360091,12.37013115,3879.0,3878.9,0.002]
[1761041360591,11.15295915,3879.0,3878.9,0.002]
[1761041360904,10.53230415,3879.0,3878.9,0.002]
[1761041361463,15.05412015,3879.0,3878.9,0.002]
[1761041362098,12.96346515,3879.0,3878.9,0.002]
[1761041362329,11.34246515,3879.0,3878.9,0.002]
[1761041362631,11.32640915,3879.0,3878.9,0.002]
[1761041363327,9.29730615,3879.0,3878.9,0.002]
[1761041363538,13.39367515,3879.0,3878.9,0.002]
[1761041363829,11.75567515,3879.0,3878.9,0.002]
[1761041364523,7.17282215,3879.0,3878.9,0.002]
[1761041364683,8.41167615,3879.0,3878.9,0.002]
[1761041364884,9.33190757,3879.0,3878.9,0.002]
[1761041365090,9.42990757,3879.0,3878.9,0.002]
[1761041365390,7.87989857,3879.0,3878.9,0.002]
[1761041365624,9.26096957,3879.0,3878.9,0.002]
[1761041366492,12.88980357,3879.0,3878.9,0.002]
[1761041367218,9.90624457,3879.0,3878.9,0.002]
[1761041367527,11.11227957,3879.0,3878.9,0.002]
[1761041367824,8.88324457,3879.0,3878.9,0.002]
[1761041368629,9.04690757,3879.0,3878.9,0.002]
[1761041369724,8.87014457,3879.0,3878.9,0.002]
[1761041370619,9.03629657,3879.0,3878.9,0.002]
[1761041371048,7.62501957,3879.0,3878.9,0.002]
[1761041371348,7.22062001,3879.0,3878.9,0.002]
[1761041371714,7.71153201,3879.0,3878.9,0.002]
[1761041372243,8.11591123,3879.0,3878.9,0.002]
[1761041372741,11.21454601,3879.0,3878.9,0.002]
[1761041373240,11.31254601,3879.0,3878.9,0.002]
[1761041373821,4.40398401,3879.0,3878.9,0.002]
[1761041374146,13.59037401,3879.0,3878.9,0.002]
[1761041374510,11.61997401,3879.0,3878.9,0.002]
[1761041374715,11.88596401,3879.0,3878.9,0.002]
[1761041375817,12.15762601,3879.0,3878.9,0.002]
[1761041376718,13.01730301,3879.0,3878.9,0.002]
[1761041376914,12.70571101,3879.0,3878.9,0.002]
[1761041377733,9.93867401,3879.0,3878.9,0.002]
[1761041377958,10.51150001,3879.0,3878.9,0.002]
[1761041378728,10.05742901,3879.0,3878.9,0.002]
[1761041378929,9.97946301,3879.0,3878.9,0.002]
[1761041380059,13.18750801,3879.0,3878.9,0.002]
[1761041380364,10.50151901,3879.0,3878.9,0.002]
[1761041380667,10.59951901,3879.0,3878.9,0.002]
[1761041380871,14.88457801,3879.0,3878.9,0.002]
[1761041381190,14.98797178,3879.0,3878.9,0.002]
[1761041381374,14.68132578,3879.0,3878.9,0.002]
[1761041381852,17.90720578,3879.0,3878.9,0.002]
[1761041382059,18.14316178,3879.0,3878.9,0.002]
[1761041382571,37.26905047,3878.9,3878.8,1e-08]
[1761041382878,44.17636366,3878.9,3878.8,1e-08]
[1761041383262,4.81312988,3878.6,3878.5,0.002]
[1761041383574,40.76029607,3878.6,3878.5,0.002]
[1761041383738,40.85929607,3878.6,3878.5,0.002]
[1761041383941,41.02977508,3878.6,3878.5,0.002]
[1761041384279,39.63214408,3878.6,3878.5,0.002]
[1761041384864,39.08854308,3878.6,3878.5,0.002]
[1761041385049,39.75648308,3878.6,3878.5,0.002]
[1761041385569,39.75648308,3878.6,3878.1,0.002]
[1761041385570,26.1003048,3878.2,3878.1,0.002]
[1761041385736,34.73561799,3878.2,3878.1,0.002]
[1761041385936,35.26700499,3878.2,3878.1,0.002]
[1761041386134,36.80576599,3878.2,3876.3,0.2343]
[1761041386333,36.80576599,3878.2,3876.0,0.217]
[1761041386334,2.5789813,3877.5,3876.0,0.217]
[1761041386581,2.57991279,3876.1,3875.9,0.002]
[1761041386877,2.57997936,3876.0,3875.9,0.002]
[1761041387034,11.85961336,3876.0,3875.9,0.002]
[1761041387736,24.77784855,3876.0,3875.9,0.002]
[1761041388138,24.03812555,3876.0,3875.9,0.002]
[1761041388438,25.83566055,3876.0,3875.9,0.002]
[1761041388767,38.41952555,3876.0,3875.9,0.002]
[1761041389166,36.92565355,3876.0,3875.9,0.002]
[1761041389472,36.72149216,3876.0,3875.9,0.002]
[1761041389668,41.49706516,3876.0,3875.9,0.002]
[1761041390686,42.22599316,3876.0,3875.9,0.002]
[1761041393380,37.15669616,3876.0,3875.9,0.002]
[1761041393741,42.22599316,3876.0,3875.9,0.002]
[1761041396345,42.22599316,3876.0,3875.1,0.002]
[1761041396346,36.28100216,3875.2,3875.1,0.002]
[1761041396751,36.38000216,3875.2,3875.1,0.002]
[1761041396966,40.30932408,3875.2,3875.1,0.002]
[1761041397175,39.62632408,3875.2,3875.1,0.002]
[1761041397388,30.85409289,3875.2,3875.1,0.002]
[1761041397557,4.41201489,3875.2,3875.1,0.6837]
[1761041398073,7.25444589,3875.2,3875.1,0.6837]
[1761041398274,7.33544589,3875.2,3875.1,0.6837]
[1761041398576,6.75576589,3875.2,3875.1,0.6837]
[1761041399078,8.94151989,3875.2,3875.1,0.6837]
[1761041399275,6.36100792,3875.2,3875.1,0.6837]
[1761041399476,4.30851197,3875.2,3875.1,0.6837]
[1761041399692,2.13282467,3875.2,3875.1,0.6837]
[1761041400057,2.58025851,3875.6,3875.1,0.6837]
[1761041400058,2.58030753,3875.6,3875.1,0.6837]
[1761041400270,7.31208486,3876.1,3875.1,0.6837]
[1761041400271,1.728,3875.3,3875.2,0.4663]
[1761041400463,2.58044538,3875.3,3875.2,0.4663]
[1761041400781,12.79576897,3875.2,3875.1,0.002]
[1761041400981,19.70308216,3875.2,3875.1,0.002]
[1761041401685,22.70719176,3874.9,3874.8,0.002]
[1761041401844,24.43519176,3874.9,3874.8,0.002]
[1761041402048,24.67889176,3874.9,3874.8,0.002]
[1761041402659,35.05929176,3874.9,3874.8,0.002]
[1761041402866,29.35760876,3874.9,3874.8,0.002]
[1761041403774,35.05929176,3874.9,3874.8,0.002]
[1761041404182,34.80789076,3874.9,3874.8,0.002]
[1761041404562,34.80789076,3874.9,3874.4,0.002]
[1761041404563,26.17062019,3874.5,3874.4,0.002]
[1761041404778,39.24347038,3874.5,3874.4,0.002]
[1761041404964,39.48717038,3874.5,3874.4,0.002]
[1761041405790,41.96687138,3874.5,3874.4,0.002]
[1761041405956,42.37179753,3874.5,3874.4,0.002]
[1761041406275,40.85291553,3874.5,3874.4,0.002]
[1761041406470,39.59003153,3874.5,3874.4,0.002]
[1761041406871,40.73335953,3874.5,3874.4,0.002]
[1761041407317,36.24828953,3874.5,3874.4,0.002]
[1761041407479,29.34432353,3874.5,3874.4,0.002]
[1761041407778,18.65505853,3874.5,3874.4,0.4596]
[1761041408154,19.16193853,3874.5,3874.4,0.002]
[1761041408481,19.26143853,3874.5,3874.4,0.002]
[1761041408872,2.58197779,3873.0,3872.9,0.2154]
[1761041409054,19.81406598,3873.0,3872.9,0.2154]
[1761041409248,19.81406598,3873.0,3872.9,0.673]
[1761041409753,11.21729098,3873.0,3872.9,0.673]
[1761041409952,11.21729098,3873.0,3872.0,0.2188]
[1761041409953,2.5821778,3872.7,3872.6,0.6764]
[1761041410155,13.0331228,3872.7,3872.6,0.6764]
[1761041410767,18.80614199,3872.7,3872.6,0.6764]
[1761041410954,4.3098958,3873.2,3872.6,0.6764]
[1761041410955,5.77301919,3873.0,3872.6,0.6764]
[1761041411173,1.728,3872.9,3872.7,0.4576]
[1761041411360,5.77301919,3873.2,3872.7,0.4576]
[1761041411560,1.728,3872.8,3872.7,0.4576]
[1761041411764,4.31011113,3872.8,3872.7,0.4576]
[1761041412892,1.728,3872.8,3872.7,0.4576]
[1761041413187,4.31011113,3872.8,3872.7,0.4576]
[1761041413889,8.62001313,3872.8,3872.7,0.4576]
[1761041414086,8.7944428,3872.7,3872.6,0.2188]
[1761041414264,2.58231116,3872.5,3872.4,0.4576]
[1761041414469,12.77962935,3872.5,3872.4,0.4576]
[1761041414966,5.77301919,3872.5,3872.4,0.4576]
[1761041415181,1.728,3872.8,3872.4,0.4576]
[1761041415373,4.31011136,3872.8,3872.4,0.4576]
[1761041415961,1.728,3872.8,3872.4,0.4576]
[1761041416289,2.5821922,3872.7,3872.4,0.4576]
[1761041416479,1.728,3872.9,3872.4,0.4576]
[1761041416793,2.58211306,3872.8,3872.4,0.4576]
[1761041417190,2.58170098,3873.5,3872.4,0.4576]
[1761041417191,10.08288462,3873.2,3872.4,0.4576]
[1761041417389,1.728,3872.8,3872.4,0.4576]
[1761041417784,2.58211285,3872.8,3872.4,0.4576]
[1761041418184,0.1288,3872.5,3872.4,0.4576]
[1761041420094,0.1288,3872.5,3872.4,3.03997785]
[1761041420276,0.1288,3873.1,3872.6,2.58219601]
[1761041420468,0.1288,3873.1,3872.4,3.16875756]
[1761041420469,0.1288,3873.1,3872.7,2.58217741]
[1761041420865,0.1288,3873.1,3872.8,0.433]
[1761041421999,0.1288,3873.1,3872.8,3.01510088]
[1761041422180,0.1288,3873.1,3872.9,2.58200279]
[1761041422366,0.1288,3873.1,3872.9,3.01500279]
[1761041422570,0.1288,3873.1,3873.0,0.433]
[1761041423094,1.728,3873.6,3873.0,0.433]
[1761041423095,4.30958124,3873.6,3873.0,0.433]
[1761041423298,0.1288,3873.3,3873.0,3.01496573]
[1761041423474,0.1288,3873.3,3873.0,0.433]
[1761041423679,0.1288,3873.3,3873.2,0.2163]
[1761041424091,0.1288,3873.3,3873.2,0.6493]
[1761041424598,8.483597,3873.3,3873.2,0.6493]
[1761041425502,5.90181919,3873.3,3873.2,0.6493]
[1761041425704,0.1288,3873.3,3873.2,0.6493]
[1761041425906,2.98652222,3873.7,3873.2,0.6493]
[1761041425907,0.53374877,3873.7,3873.2,0.6493]
[1761041426116,2.26174877,3873.7,3873.3,0.433]
[1761041426320,2.58157786,3873.6,3873.3,0.433]
[1761041426616,0.1288,3873.6,3873.3,0.433]
[1761041427519,0.1288,3873.6,3873.4,2.58170005]
[1761041427715,1.728,3874.0,3873.4,2.58170005]
[1761041428013,0.1288,3873.8,3873.5,0.433]
[1761041434762,0.001,3874.0,3873.5,0.433]
[1761041435056,0.001,3874.0,3873.7,2.5814997]
[1761041435621,0.001,3874.0,3873.8,0.4568]
[1761041436326,0.001,3874.0,3873.9,2.58137793]
[1761041436717,0.001,3874.0,3873.9,3.03817793]
[1761041437118,0.001,3874.0,3873.9,0.4568]
[1761041437320,0.001,3874.0,3873.9,0.5856]
[1761041439354,0.001,3874.0,3873.9,3.16697793]
[1761041439653,0.001,3874.0,3873.9,0.5856]
[1761041441168,0.001,3874.0,3873.9,3.16697793]
[1761041441540,0.001,3874.0,3873.9,0.5856]
[1761041443177,0.001,3874.0,3873.9,3.16697793]
[1761041444274,0.001,3874.0,3873.9,9.51484044]
[1761041446963,0.001,3874.0,3873.9,9.51684044]
[1761041450462,0.001,3874.0,3873.9,3.16897793]
[1761041450970,0.001,3874.0,3873.9,0.5876]
[1761041451499,0.001,3874.0,3873.9,0.1308]
[1761041451795,0.001,3874.0,3873.9,3.16897793]
[1761041455793,0.001,3874.0,3873.9,0.1308]
[1761041456604,0.001,3874.0,3873.9,3.16897793]
[1761041456972,0.001,3874.0,3873.9,0.1308]
[1761041457170,0.001,3874.0,3873.9,0.002]
[1761041457375,0.001,3874.0,3873.9,3.04017793]
[1761041457707,0.001,3874.0,3873.9,0.4588]
[1761041458214,0.001,3874.0,3873.9,0.002]
[1761041460981,0.001,3874.0,3873.9,2.58337793]
[1761041462110,0.001,3874.0,3873.9,0.002]
[1761041463077,0.2288,3874.0,3873.9,0.002]
[1761041463822,0.1298,3874.0,3873.9,0.002]
[1761041464119,2.8101113,3874.0,3873.9,0.002]
[1761041465000,0.1298,3874.0,3873.9,0.002]
[1761041466313,2.7111113,3874.0,3873.9,0.002]
[1761041467008,0.1298,3874.0,3873.9,0.002]
[1761041467491,2.7111113,3874.0,3873.9,0.002]
[1761041467692,0.1298,3874.0,3873.9,0.002]
[1761041468215,2.7111113,3874.0,3873.9,0.002]
[1761041468415,2.8101113,3874.0,3873.9,0.002]
[1761041469109,19.8709473,3874.0,3873.9,0.002]
[1761041469309,12.1190943,3874.0,3873.9,0.002]
[1761041470033,11.5538613,3874.0,3873.9,0.002]
[1761041470186,11.9524803,3874.0,3873.9,0.002]
[1761041470522,12.4593603,3874.0,3873.9,0.002]
[1761041471216,19.5357543,3874.0,3873.9,0.002]
[1761041471415,18.1425213,3874.0,3873.9,0.002]
[1761041471808,12.3406993,3874.0,3873.9,0.002]
[1761041472010,9.66635957,3874.0,3873.9,0.002]
[1761041472211,12.88384857,3874.0,3873.9,0.002]
[1761041472396,12.4788943,3874.0,3873.9,0.002]
[1761041472705,9.4645233,3874.0,3873.9,0.002]
[1761041472902,4.4391113,3874.0,3873.9,0.002]
[1761041473120,4.5381113,3874.0,3873.9,0.002]
[1761041473338,8.3518793,3874.0,3873.9,0.002]
[1761041473993,14.1358713,3874.0,3873.9,0.002]
[1761041474394,9.4983573,3874.0,3873.9,0.002]
[1761041474624,7.8001113,3874.0,3873.9,0.002]
[1761041474827,7.7011113,3874.0,3873.9,0.002]
[1761041475028,1.729,3874.0,3873.9,0.002]
[1761041475231,4.993,3874.0,3873.9,0.002]
[1761041475727,9.9195173,3874.0,3873.9,0.002]
[1761041475901,10.0185173,3874.0,3873.9,0.002]
[1761041476103,7.5743113,3874.0,3873.9,0.002]
[1761041476295,4.993,3874.0,3873.9,0.002]
[1761041476496,7.5743113,3874.0,3873.9,0.002]
[1761041477450,4.993,3874.0,3873.9,0.002]
[1761041478140,4.993,3874.0,3873.9,0.4501]
[1761041478346,3.265,3874.0,3873.9,0.4501]
[1761041478641,0.001,3874.0,3873.9,0.4501]
[1761041479556,0.001,3874.0,3873.9,3.03147793]
[1761041479925,0.001,3874.0,3873.9,0.4501]
[1761041481327,0.001,3874.0,3873.9,3.59278725]
[1761041484261,0.001,3874.0,3873.9,0.56330932]
[1761041484470,0.001,3874.0,3873.9,0.002]
[1761041485323,0.001,3874.0,3873.9,0.4395]
[1761041485931,0.001,3874.0,3873.9,3.02087793]
[1761041488366,0.001,3874.0,3873.9,0.4395]
[1761041488952,0.001,3874.0,3873.9,0.002]
[1761041489151,0.001,3874.0,3873.9,0.4395]
[1761041490485,0.001,3874.0,3873.9,3.02087793]
[1761041491981,0.001,3874.0,3873.9,3.7015]
[1761041492351,0.001,3874.0,3873.9,6.28287793]
[1761041493488,0.001,3874.0,3873.9,7.18219602]
[1761041500907,0.001,3874.0,3873.9,7.31099602]
[1761041505371,0.001,3874.0,3873.9,6.41167793]
[1761041517689,0.001,3874.0,3873.9,12.90321037]
[1761041518622,0.001,3874.0,3873.9,15.13809037]
[1761041524435,0.001,3874.0,3873.9,15.39639037]
[1761041534837,0.001,3874.0,3873.9,14.66815034]
[1761041535146,0.001,3874.0,3873.9,16.97978633]
[1761041543738,0.001,3874.0,3873.9,17.25748633]
[1761041555999,0.001,3874.4,3873.9,17.25748633]
[1761041556000,0.001,3874.4,3874.3,3.08799142]
[1761041556163,0.001,3874.4,3874.3,13.83128383]
[1761041556364,0.001,3874.4,3874.3,13.96008383]
[1761041556565,0.001,3874.4,3874.3,15.89432224]
[1761041556900,0.001,3874.4,3874.3,16.2991009]
[1761041557086,0.001,3874.4,3874.3,16.7609009]
[1761041557707,0.001,3874.4,3874.3,16.2991009]
[1761041558000,0.001,3874.4,3874.3,17.0192009]
[1761041562120,1e-08,3875.2,3875.1,3.08745856]
[1761041562332,1e-08,3875.2,3875.1,14.14049683]
[1761041562503,1e-08,3875.2,3875.1,14.60229683]
[1761041562887,1e-08,3875.2,3875.1,14.88159683]
[1761041563086,1e-08,3875.2,3875.1,15.10139683]
[1761041563807,1e-08,3875.2,3875.1,14.41979683]
[1761041565924,0.40469658,3875.2,3875.1,14.41979683]
[1761041566100,0.40469658,3875.2,3875.1,14.88159683]
[1761041566498,0.1803,3876.0,3875.5,3.08719221]
[1761041566717,0.0998,3876.2,3875.5,14.57005504]
[1761041567021,0.0998,3876.2,3875.5,15.03185504]
[1761041567223,0.0998,3876.2,3875.5,15.20435504]
[1761041568324,0.1452,3877.0,3875.5,15.20435504]
[1761041568827,0.0998,3876.6,3875.5,15.20435504]
[1761041569040,0.2723,3876.5,3875.5,15.20435504]
[1761041569430,0.1725,3876.5,3875.5,14.74255504]
[1761041569600,0.0998,3876.1,3875.5,14.74255504]
[1761041569802,0.0998,3876.4,3875.5,15.20435504]
[1761041570001,0.1725,3876.5,3875.5,15.20435504]
[1761041571138,0.0998,3876.8,3875.5,21.49063267]
[1761041571335,0.1452,3877.0,3876.9,2.57938043]
[1761041571537,0.1452,3877.0,3876.9,5.85717423]
[1761041571538,0.2457,3877.0,3876.9,5.85717423]
[1761041571742,0.1452,3877.0,3876.9,5.83138043]
[1761041572036,0.1452,3877.0,3876.9,6.2360037]
[1761041572238,0.1452,3877.0,3876.9,7.82268466]
[1761041572634,0.101,3877.4,3877.3,2.57911433]
[1761041572809,0.101,3877.4,3877.3,5.83111433]
[1761041573117,0.101,3877.4,3877.3,5.95991433]
[1761041573330,0.101,3877.4,3877.3,6.13761433]
[1761041574135,0.1777,3878.0,3877.3,6.13761433]
[1761041574136,0.1777,3878.0,3877.9,2.57871528]
[1761041574334,0.1777,3878.0,3877.9,5.83071528]
[1761041574520,0.1777,3878.0,3877.9,5.95951528]
[1761041575039,0.2787,3878.0,3877.9,5.95951528]
[1761041576956,0.2787,3878.0,3877.9,5.83071528]
[1761041577116,0.2787,3878.0,3877.9,5.95951528]
[1761041577454,0.2787,3878.0,3877.9,6.23821528]
[1761041580451,0.2787,3878.0,3877.9,7.69624916]